fUSD/lending_fUSD_20250124
["ID","MTS","AMOUNT","RATE_DAILY","PERIOD"]
[350251966,1737737434295,-500.0,0.00018353,2]
[350251967,1737737434305,-500.0,0.00018353,2]
[350251968,1737737434316,-500.0,0.00018353,2]
[350251969,1737737434326,-500.0,0.00018353,2]
[350251970,1737737434336,-500.0,0.00018353,2]
[350251971,1737737434346,-485.46118691,0.00018353,2]
[350251972,1737737434356,-500.0,0.00018353,2]
[350251973,1737737434366,-500.0,0.00018353,2]
[350251974,1737737434376,-500.0,0.00018353,2]
[350251975,1737737434386,-500.0,0.00018353,2]
[350251976,1737737434396,-500.0,0.00018353,2]
[350251977,1737737434406,-500.0,0.00018353,2]
[350251978,1737737434416,-514.9562661,0.00018353,2]
[350251979,1737737434426,-500.0,0.00018353,2]
[350251980,1737737434436,-509.7,0.00018353,2]
[350251981,1737737434446,-500.0,0.00018353,2]
[350251982,1737737434456,-186.1,0.00018353,2]
[350251983,1737737434467,-549.65633495,0.00018353,2]
[350251984,1737737434477,-500.0,0.00018353,2]
[350251985,1737737434487,-490.0,0.00018353,2]
[350251986,1737737434497,-2664.53345277,0.00018379,2]
[350251987,1737737434507,-500.0,0.0001849,2]
[350251988,1737737434516,-530.96274226,0.0001849,2]
[350251989,1737737434525,-500.0,0.0001849,2]
[350251990,1737737434535,-500.0,0.0001849,2]
[350251991,1737737434546,-500.0,0.0001849,2]
[350251992,1737737434557,-500.0,0.0001849,2]
[350251993,1737737434566,-500.0,0.0001849,2]
[350251994,1737737434576,-366.29942876,0.0001849,2]
[350251995,1737737434585,-500.0,0.0001849,2]
[350251996,1737737434596,-299.71053218,0.0001849,2]
[350251997,1737737434607,-517.94,0.0001849,2]
[350251998,1737737434617,-500.0,0.0001849,2]
[350251999,1737737434626,-291.1,0.0001849,2]
[350252000,1737737434636,-500.0,0.00018499,2]
[350252001,1737737434646,-500.0,0.00018499,2]
[350252002,1737737434656,-500.0,0.00018499,2]
[350252003,1737737434667,-500.0,0.00018499,2]
[350252004,1737737434681,-500.0,0.00018499,2]
[350252005,1737737434691,-507.93362773,0.00018499,2]
[350252006,1737737434701,-500.0,0.00018499,2]
[350252007,1737737434710,-500.0,0.00018499,2]
[350252008,1737737434722,-500.0,0.00018499,2]
[350252009,1737737434732,-500.0,0.00018499,2]
[350252010,1737737434741,-800.58,0.00018499,2]
[350252011,1737737434751,-500.0,0.00018499,2]
[350252012,1737737434762,-500.0,0.00018499,2]
[350252013,1737737434772,-500.0,0.00018499,2]
[350252014,1737737434782,-200.0,0.00018499,2]
[350252015,1737737434793,-500.0,0.00018499,2]
[350252016,1737737434803,-500.0,0.00018499,2]
[350252017,1737737434813,-500.0,0.00018499,2]
[350252018,1737737434822,-336.20157169,0.00018499,2]
[350252019,1737737434832,-500.0,0.00018499,2]
[350252020,1737737434842,-500.0,0.00018499,2]
[350252021,1737737434852,-504.83686044,0.00018499,2]
[350252022,1737737434861,-500.0,0.00018499,2]
[350252023,1737737434871,-500.0,0.00018499,2]
[350252024,1737737434881,-500.0,0.00018499,2]
[350252025,1737737434891,-500.0,0.00018499,2]
[350252026,1737737434900,-423.65,0.00018499,2]
[350252027,1737737434910,-500.0,0.00018499,2]
[350252028,1737737434920,-1707.97,0.00018499,2]
[350252029,1737737434929,-503.1818738,0.00018499,2]
[350252030,1737737434939,-500.0,0.00018499,2]
[350252031,1737737434950,-1333.2,0.00018499,2]
[350252032,1737737434959,-500.0,0.00018499,2]
[350252033,1737737434969,-500.0,0.00018499,2]
[350252034,1737737434979,-500.0,0.00018499,2]
[350252035,1737737434989,-403.71213838,0.00018499,2]
[350252036,1737737434999,-500.0,0.00018499,2]
[350252037,1737737435009,-500.0,0.00018499,2]
[350252038,1737737435019,-500.0,0.00018499,2]
[350252039,1737737435029,-500.0,0.00018499,2]
[350252040,1737737435039,-500.0,0.00018499,2]
[350252041,1737737435052,-553.27,0.00018499,2]
[350252042,1737737435061,-500.0,0.00018499,2]
[350252043,1737737435070,-500.0,0.00018499,2]
[350252044,1737737435080,-500.0,0.00018499,2]
[350252045,1737737435089,-500.0,0.00018499,2]
[350252046,1737737435099,-503.08416968,0.00018499,2]
[350252047,1737737435109,-500.0,0.00018499,2]
[350252048,1737737435118,-500.0,0.00018499,2]
[350252049,1737737435128,-500.0,0.00018499,2]
[350252050,1737737435138,-500.0,0.00018499,2]
[350252051,1737737435148,-500.0,0.00018499,2]
[350252052,1737737435158,-500.0,0.00018499,2]
[350252053,1737737435168,-500.0,0.00018499,2]
[350252054,1737737435178,-504.85133365,0.00018499,2]
[350252055,1737737435188,-154.93397335,0.00018499,2]
[350252056,1737737435198,-500.0,0.00018499,2]
[350252057,1737737435208,-500.0,0.00018499,2]
[350252058,1737737435218,-500.0,0.00018499,2]
[350252059,1737737435228,-500.0,0.00018499,2]
[350252060,1737737435238,-500.0,0.00018499,2]
[350252061,1737737435247,-500.0,0.00018499,2]
[350252062,1737737435257,-500.0,0.00018499,2]
[350252063,1737737435267,-500.0,0.00018499,2]
[350252064,1737737435276,-503.0813738,0.00018499,2]
[350252065,1737737435285,-502.8545858,0.00018499,2]
[350252066,1737737435295,-500.0,0.00018499,2]
[350252067,1737737435304,-249.81270552,0.00018499,2]
[350252068,1737737435314,-370.50779479,0.00018499,2]
[350252069,1737737435323,-338.62619317,0.00018499,2]
[350252070,1737737435333,-500.0,0.00018499,2]
[350252071,1737737435343,-500.0,0.00018499,2]
[350252072,1737737435353,-500.0,0.00018499,2]
[350252073,1737737435362,-152.94581947,0.00018499,2]
[350252074,1737737435372,-500.0,0.00018499,2]
[350252075,1737737435382,-500.0,0.00018499,2]
[350252076,1737737435392,-500.0,0.00018499,2]
[350252077,1737737435402,-500.0,0.00018499,2]
[350252078,1737737435411,-500.0,0.00018499,2]
[350252079,1737737435421,-500.0,0.00018499,2]
[350252080,1737737435431,-500.0,0.00018499,2]
[350252081,1737737435441,-500.0,0.00018499,2]
[350252082,1737737435451,-500.0,0.00018499,2]
[350252083,1737737435460,-500.0,0.00018499,2]
[350252084,1737737435470,-226.9483134,0.00018499,2]
[350252085,1737737435479,-500.0,0.00018499,2]
[350252086,1737737435489,-500.0,0.00018499,2]
[350252087,1737737435499,-500.0,0.00018499,2]
[350252088,1737737435508,-500.0,0.00018499,2]
[350252089,1737737435517,-500.0,0.00018499,2]
[350252090,1737737435527,-416.55568833,0.00018499,2]
[350252091,1737737435538,-38000.0,0.000185,3]
[350252092,1737737435549,-2402.72559,0.000185,2]
[350252093,1737737435559,-2664.53345277,0.00018511,2]
[350252094,1737737435568,-167.92680393,0.00018589,2]
[350252095,1737737435579,-10000.0,0.000186,2]
[350252096,1737737435590,-500.0,0.000186,2]
[350252097,1737737435600,-500.0,0.000186,2]
[350252098,1737737435610,-500.0,0.000186,2]
[350252099,1737737435619,-500.0,0.000186,2]
[350252100,1737737435629,-2436.85,0.000186,2]
[350252101,1737737435639,-500.0,0.000186,2]
[350252102,1737737435649,-500.0,0.000186,2]
[350252103,1737737435659,-500.0,0.000186,2]
[350252104,1737737435669,-500.0,0.000186,2]
[350252105,1737737435680,-500.0,0.000186,2]
[350252106,1737737435691,-557.58,0.000186,2]
[350252107,1737737435701,-500.0,0.000186,2]
[350252108,1737737435711,-500.0,0.000186,2]
[350252109,1737737435722,-402.88,0.000186,2]
[350252110,1737737435731,-500.0,0.000186,2]
[350252111,1737737435741,-382.69,0.000186,2]
[350252112,1737737435751,-500.0,0.000186,2]
[350252113,1737737435763,-500.0,0.00018601,2]
[350252114,1737737435773,-181.69,0.00018601,2]
[350252115,1737737435782,-500.0,0.00018601,2]
[350252116,1737737435792,-500.0,0.00018601,2]
[350252117,1737737435803,-500.0,0.00018601,2]
[350252118,1737737435812,-500.0,0.00018601,2]
[350252119,1737737435822,-500.0,0.00018601,2]
[350252120,1737737435833,-500.0,0.00018601,2]
[350252121,1737737435843,-500.0,0.00018601,2]
[350252122,1737737435852,-500.0,0.00018601,2]
[350252123,1737737435862,-500.0,0.00018601,2]
[350252124,1737737435873,-500.0,0.00018601,2]
[350252125,1737737435882,-500.0,0.00018601,2]
[350252126,1737737435892,-368.43,0.00018601,2]
[350252127,1737737435902,-500.0,0.00018601,2]
[350252128,1737737435912,-500.0,0.00018601,2]
[350252129,1737737435922,-401.1698534,0.00018601,2]
[350252130,1737737435931,-502.21433242,0.00018601,2]
[350252131,1737737435940,-312.47980149,0.00018601,2]
[350252132,1737737435950,-500.0,0.00018601,2]
[350252133,1737737435959,-315.23586609,0.00018601,2]
[350252134,1737737435970,-500.0,0.00018601,2]
[350252135,1737737435980,-500.0,0.00018601,2]
[350252136,1737737435990,-500.0,0.00018601,2]
[350252137,1737737436000,-500.0,0.00018601,2]
[350252138,1737737436010,-500.0,0.00018601,2]
[350252139,1737737436021,-500.0,0.00018601,2]
[350252140,1737737436031,-500.0,0.00018601,2]
[350252141,1737737436040,-500.0,0.00018601,2]
[350252142,1737737436051,-500.0,0.00018601,2]
[350252143,1737737436061,-500.0,0.00018601,2]
[350252144,1737737436071,-500.0,0.00018601,2]
[350252145,1737737436081,-500.0,0.00018601,2]
[350252146,1737737436090,-500.0,0.00018601,2]
[350252147,1737737436100,-500.0,0.00018601,2]
[350252148,1737737436112,-500.0,0.00018601,2]
[350252149,1737737436121,-500.0,0.00018601,2]
[350252150,1737737436131,-500.0,0.00018601,2]
[350252151,1737737436141,-500.0,0.00018601,2]
[350252152,1737737436151,-500.0,0.00018601,2]
[350252153,1737737436161,-500.0,0.00018601,2]
[350252154,1737737436170,-500.0,0.00018601,2]
[350252155,1737737436180,-500.0,0.00018601,2]
[350252156,1737737436190,-500.0,0.00018601,2]
[350252157,1737737436199,-500.0,0.00018601,2]
[350252158,1737737436210,-500.0,0.00018601,2]
[350252159,1737737436219,-500.0,0.00018601,2]
[350252160,1737737436228,-500.0,0.00018601,2]
[350252161,1737737436238,-500.0,0.00018601,2]
[350252162,1737737436248,-500.0,0.00018601,2]
[350252163,1737737436257,-500.0,0.00018601,2]
[350252164,1737737436268,-500.0,0.00018601,2]
[350252165,1737737436279,-500.0,0.00018601,2]
[350252166,1737737436289,-500.0,0.00018601,2]
[350252167,1737737436300,-500.0,0.00018601,2]
[350252168,1737737436310,-500.0,0.00018601,2]
[350252169,1737737436320,-500.0,0.00018601,2]
[350252170,1737737436329,-500.0,0.00018601,2]
[350252171,1737737436339,-500.0,0.00018601,2]
[350252172,1737737436348,-1000.0,0.00018601,2]
[350252173,1737737436358,-500.0,0.00018601,2]
[350252174,1737737436367,-500.0,0.00018601,2]
[350252175,1737737436377,-500.0,0.00018601,2]
[350252176,1737737436386,-500.0,0.00018601,2]
[350252177,1737737436396,-257.83024334,0.00018601,2]
[350252178,1737737436406,-500.0,0.00018601,2]
[350252179,1737737436416,-500.0,0.00018601,2]
[350252180,1737737436426,-500.0,0.00018601,2]
[350252181,1737737436436,-500.0,0.00018601,2]
[350252182,1737737436446,-528.64240455,0.00018601,2]
[350252183,1737737436456,-500.0,0.00018601,2]
[350252184,1737737436465,-500.0,0.00018601,2]
[350252185,1737737436474,-500.0,0.00018601,2]
[350252186,1737737436484,-500.0,0.00018601,2]
[350252187,1737737436493,-500.0,0.00018601,2]
[350252188,1737737436503,-500.0,0.00018601,2]
[350252189,1737737436513,-500.0,0.00018601,2]
[350252190,1737737436522,-601.86,0.00018601,2]
[350252191,1737737436532,-500.0,0.00018601,2]
[350252192,1737737436541,-500.0,0.00018601,2]
[350252193,1737737436552,-500.0,0.00018601,2]
[350252194,1737737436562,-500.0,0.00018601,2]
[350252195,1737737436571,-500.0,0.00018601,2]
[350252196,1737737436580,-500.0,0.00018601,2]
[350252197,1737737436590,-259.91,0.00018627,2]
[350252198,1737737436600,-500.0,0.00018627,2]
[350252199,1737737436609,-500.0,0.00018627,2]
[350252200,1737737436619,-432.58134996,0.00018627,2]
[350252201,1737737436628,-500.0,0.00018627,2]
[350252202,1737737436638,-192.9,0.00018627,2]
[350252203,1737737436649,-283.83846393,0.00018627,2]
[350252204,1737737436658,-500.0,0.00018636,2]
[350252205,1737737436669,-500.0,0.00018636,2]
[350252206,1737737436685,-500.0,0.00018636,2]
[350252207,1737737436694,-345.5,0.00018636,2]
[350252208,1737737436704,-800.58,0.00018636,2]
[350252209,1737737436716,-290.97,0.00018636,2]
[350252210,1737737436726,-602.41,0.00018636,2]
[350252211,1737737436737,-500.0,0.00018636,2]
[350252212,1737737436746,-500.0,0.00018636,2]
[350252213,1737737436757,-1707.97,0.00018636,2]
[350252214,1737737436767,-500.0,0.00018636,2]
[350252215,1737737436777,-1333.2,0.00018636,2]
[350252216,1737737436786,-500.0,0.00018636,2]
[350252217,1737737436797,-500.0,0.00018636,2]
[350252218,1737737436807,-500.0,0.00018636,2]
[350252219,1737737436817,-483.46,0.00018636,2]
[350252220,1737737436827,-155.22,0.00018636,2]
[350252221,1737737436837,-500.0,0.00018636,2]
[350252222,1737737436849,-500.0,0.00018636,2]
[350252223,1737737436866,-500.0,0.00018636,2]
[350252224,1737737436880,-500.0,0.00018636,2]
[350252225,1737737436889,-500.0,0.00018636,2]
[350252226,1737737436901,-500.0,0.00018636,2]
[350252227,1737737436911,-500.0,0.00018636,2]
[350252228,1737737436921,-500.0,0.00018636,2]
[350252229,1737737436930,-500.0,0.00018636,2]
[350252230,1737737436939,-500.0,0.00018636,2]
[350252231,1737737436949,-500.0,0.00018636,2]
[350252232,1737737436959,-500.0,0.00018636,2]
[350252233,1737737436969,-500.0,0.00018636,2]
[350252234,1737737436978,-500.0,0.00018636,2]
[350252235,1737737436988,-500.0,0.00018636,2]
[350252236,1737737436998,-500.0,0.00018636,2]
[350252237,1737737437008,-500.0,0.00018636,2]
[350252238,1737737437018,-500.0,0.00018636,2]
[350252239,1737737437027,-500.0,0.00018636,2]
[350252240,1737737437037,-500.0,0.00018636,2]
[350252241,1737737437047,-500.0,0.00018636,2]
[350252242,1737737437056,-500.0,0.00018636,2]
[350252243,1737737437066,-500.0,0.00018636,2]
[350252244,1737737437075,-500.0,0.00018636,2]
[350252245,1737737437085,-500.0,0.00018636,2]
[350252246,1737737437095,-500.0,0.00018636,2]
[350252247,1737737437105,-500.0,0.00018636,2]
[350252248,1737737437256,-500.0,0.00018636,2]
[350252249,1737737437267,-2664.53345277,0.00018642,2]
[350252250,1737737437279,-169.74502406,0.00018691,2]
[350252251,1737737437290,-503.39868062,0.00018691,2]
[350252252,1737737437302,-503.14566935,0.00018691,2]
[350252253,1737737437312,-501.67710537,0.00018691,2]
[350252254,1737737437323,-502.23657365,0.00018691,2]
[350252255,1737737437333,-201.30616063,0.00018691,2]
[350252256,1737737437344,-501.22400596,0.00018691,2]
[350252257,1737737437356,-501.95728721,0.00018691,2]
[350252258,1737737437367,-501.56075317,0.00018691,2]
[350252259,1737737437377,-500.0,0.00018691,2]
[350252260,1737737437387,-500.0,0.00018691,2]
[350252261,1737737437400,-501.76178357,0.00018691,2]
[350252262,1737737437410,-503.04960206,0.00018691,2]
[350252263,1737737437420,-500.0,0.00018691,2]
[350252264,1737737437430,-504.67377525,0.00018691,2]
[350252265,1737737437439,-500.83039609,0.00018691,2]
[350252266,1737737437449,-500.0,0.00018691,2]
[350252267,1737737437459,-167.92680388,0.00018708,2]
[350252268,1737737437468,-55555.0,0.00018727,2]
[350252269,1737737437480,-525.96,0.00018737,2]
[350252270,1737737437491,-500.0,0.00018737,2]
[350252271,1737737437501,-412.17,0.00018737,2]
[350252272,1737737437511,-500.0,0.00018737,2]
[350252273,1737737437521,-2436.85,0.00018737,2]
[350252274,1737737437531,-219.61,0.00018737,2]
[350252275,1737737437540,-500.0,0.00018737,2]
[350252276,1737737437551,-500.0,0.00018737,2]
[350252277,1737737437560,-175.72,0.00018737,2]
[350252278,1737737437570,-617.33,0.00018737,2]
[350252279,1737737437580,-500.0,0.00018737,2]
[350252280,1737737437590,-500.0,0.00018737,2]
[350252281,1737737437599,-263.79,0.00018737,2]
[350252282,1737737437610,-500.0,0.00018737,2]
[350252283,1737737437619,-500.0,0.00018738,2]
[350252284,1737737437629,-500.0,0.00018738,2]
[350252285,1737737437639,-500.0,0.00018738,2]
[350252286,1737737437649,-500.0,0.00018738,2]
[350252287,1737737437659,-500.0,0.00018738,2]
[350252288,1737737437669,-307.77,0.00018738,2]
[350252289,1737737437681,-500.0,0.00018738,2]
[350252290,1737737437690,-309.18,0.00018738,2]
[350252291,1737737437700,-483.23,0.00018738,2]
[350252292,1737737437710,-422.10607208,0.00018738,2]
[350252293,1737737437719,-162.96,0.00018738,2]
[350252294,1737737437728,-500.0,0.00018738,2]
[350252295,1737737437738,-214.93,0.00018738,2]
[350252296,1737737437747,-500.0,0.00018738,2]
[350252297,1737737437757,-500.0,0.00018738,2]
[350252298,1737737437768,-503.25,0.00018738,2]
[350252299,1737737437778,-500.0,0.00018738,2]
[350252300,1737737437788,-445.0,0.00018738,2]
[350252301,1737737437797,-391.41697422,0.00018738,2]
[350252302,1737737437807,-500.0,0.00018738,2]
[350252303,1737737437824,-500.0,0.00018738,2]
[350252304,1737737437834,-500.0,0.00018738,2]
[350252305,1737737437844,-500.0,0.00018738,2]
[350252306,1737737437853,-500.0,0.00018738,2]
[350252307,1737737437863,-500.0,0.00018738,2]
[350252308,1737737437873,-500.0,0.00018738,2]
[350252309,1737737437883,-406.89,0.00018738,2]
[350252310,1737737437892,-256.96,0.00018738,2]
[350252311,1737737437902,-500.0,0.00018738,2]
[350252312,1737737437911,-500.0,0.00018738,2]
[350252313,1737737437921,-539.42,0.00018738,2]
[350252314,1737737437930,-407.57,0.00018738,2]
[350252315,1737737437939,-500.0,0.00018738,2]
[350252316,1737737437949,-426.52,0.00018738,2]
[350252317,1737737437959,-500.0,0.00018738,2]
[350252318,1737737437968,-553.09,0.00018738,2]
[350252319,1737737437978,-500.0,0.00018738,2]
[350252320,1737737437987,-500.0,0.00018738,2]
[350252322,1737737437996,-500.0,0.00018738,2]
[350252323,1737737438007,-1000.0,0.00018738,2]
[350252324,1737737438016,-500.0,0.00018738,2]
[350252325,1737737438026,-500.0,0.00018738,2]
[350252326,1737737438035,-500.0,0.00018738,2]
[350252327,1737737438044,-500.0,0.00018738,2]
[350252328,1737737438055,-500.0,0.00018738,2]
[350252329,1737737438064,-500.0,0.00018738,2]
[350252330,1737737438074,-500.0,0.00018738,2]
[350252331,1737737438083,-500.0,0.00018738,2]
[350252332,1737737438093,-308.95,0.00018738,2]
[350252333,1737737438102,-502.72,0.00018738,2]
[350252334,1737737438113,-500.0,0.00018738,2]
[350252335,1737737438123,-641.36,0.00018738,2]
[350252336,1737737438132,-1385.93,0.00018751,2]
[350252337,1737737438143,-220.05263431,0.00018756,2]
[350252338,1737737438153,-381.6000024,0.00018759,2]
[350252339,1737737438162,-500.0,0.00018764,2]
[350252340,1737737438172,-500.0,0.00018764,2]
[350252341,1737737438182,-381.6000024,0.00018766,2]
[350252342,1737737438192,-626.19,0.00018773,2]
[350252343,1737737438201,-466.81784346,0.00018773,2]
[350252344,1737737438210,-800.58,0.00018773,2]
[350252345,1737737438219,-500.0,0.00018773,2]
[350252346,1737737438229,-500.0,0.00018773,2]
[350252347,1737737438239,-1707.97,0.00018773,2]
[350252348,1737737438249,-500.0,0.00018773,2]
[350252349,1737737438259,-1333.2,0.00018773,2]
[350252350,1737737438268,-170.61,0.00018773,2]
[350252351,1737737438279,-500.0,0.00018773,2]
[350252352,1737737438288,-500.0,0.00018773,2]
[350252353,1737737438300,-260.62,0.00018773,2]
[350252354,1737737438310,-500.0,0.00018773,2]
[350252355,1737737438320,-500.0,0.00018773,2]
[350252356,1737737438330,-500.0,0.00018773,2]
[350252357,1737737438340,-500.0,0.00018773,2]
[350252358,1737737438356,-174.06,0.00018773,2]
[350252359,1737737438366,-500.0,0.00018773,2]
[350252360,1737737438376,-565.56,0.00018773,2]
[350252361,1737737438386,-500.0,0.00018773,2]
[350252362,1737737438396,-500.0,0.00018773,2]
[350252363,1737737438407,-317.58,0.00018773,2]
[350252364,1737737438418,-500.0,0.00018773,2]
[350252365,1737737438430,-500.0,0.00018773,2]
[350252366,1737737438442,-584.9,0.00018773,2]
[350252367,1737737438453,-162.72,0.00018773,2]
[350252368,1737737438462,-500.0,0.00018773,2]
[350252369,1737737438474,-500.0,0.00018773,2]
[350252370,1737737438487,-500.0,0.00018773,2]
[350252371,1737737438497,-500.0,0.00018773,2]
[350252372,1737737438508,-500.0,0.00018773,2]
[350252373,1737737438518,-500.0,0.00018773,2]
[350252374,1737737438527,-327.28,0.00018773,2]
[350252375,1737737438537,-500.0,0.00018773,2]
[350252376,1737737438547,-2664.53345277,0.00018774,2]
[350252377,1737737438557,-200.0,0.00018783,2]
[350252378,1737737438566,-220.05263431,0.00018784,2]
[350252379,1737737438577,-220.05263431,0.0001879,2]
[350252380,1737737438586,-200.0,0.00018795,2]
[350252381,1737737438597,-381.6000024,0.00018801,2]
[350252383,1737737438608,-220.05263431,0.00018805,2]
[350252385,1737737438618,-167.92680388,0.00018826,2]
[350252387,1737737438628,-381.6000024,0.00018826,2]
[350252389,1737737438638,-200.0,0.00018835,2]
[350252391,1737737438648,-505.0,0.00018849,2]
[350252393,1737737438658,-500.0,0.00018854,2]
[350252394,1737737438668,-381.6000024,0.00018856,2]
[350252395,1737737438682,-200.0,0.0001886,2]
[350252396,1737737438693,-200.0,0.00018869,2]
[350252397,1737737438703,-220.05263431,0.00018874,2]
[350252398,1737737438712,-569.64,0.00018874,2]
[350252399,1737737438723,-500.0,0.00018874,2]
[350252400,1737737438733,-2436.85,0.00018874,2]
[350252401,1737737438742,-500.0,0.00018874,2]
[350252402,1737737438752,-500.0,0.00018874,2]
[350252403,1737737438766,-500.0,0.00018874,2]
[350252404,1737737438776,-500.0,0.00018874,2]
[350252405,1737737438785,-500.0,0.00018874,2]
[350252406,1737737438800,-200.0,0.00018874,2]
[350252407,1737737438810,-500.0,0.00018875,2]
[350252408,1737737438820,-500.0,0.00018875,2]
[350252409,1737737438829,-502.92,0.00018875,2]
[350252410,1737737438839,-231.89,0.00018875,2]
[350252411,1737737438849,-500.0,0.00018875,2]
[350252412,1737737438859,-500.0,0.00018875,2]
[350252413,1737737438869,-252.55,0.00018875,2]
[350252414,1737737438878,-500.0,0.00018875,2]
[350252415,1737737438888,-500.0,0.00018875,2]
[350252416,1737737438897,-460.52,0.00018875,2]
[350252417,1737737438907,-151.79,0.00018875,2]
[350252418,1737737438916,-179.02,0.00018875,2]
[350252419,1737737438926,-500.0,0.00018875,2]
[350252420,1737737438936,-500.0,0.00018875,2]
[350252421,1737737438945,-500.0,0.00018875,2]
[350252422,1737737438955,-500.0,0.00018875,2]
[350252423,1737737438964,-291.37466272,0.00018875,2]
[350252424,1737737439076,-208.62533728,0.00018875,2]
[350252425,1737737439086,-178.37466272,0.00018881,2]
[350252426,1737737439098,-21.62533728,0.00018881,2]
[350252427,1737737439109,-420.0,0.00018885,2]
[350252428,1737737439119,-200.0,0.00018887,2]
[350252429,1737737439129,-200.0,0.00018898,2]
[350252430,1737737439139,-892.99354732,0.000189,2]
[350252431,1737737439149,-500.0,0.00018901,2]
[350252432,1737737439160,-500.0,0.00018901,2]
[350252433,1737737439169,-1529.01454479,0.00018905,2]
[350252434,1737737439181,-433.39259288,0.00018905,2]
[350252435,1737737439197,-507.959,0.00018905,2]
[350252436,1737737439209,-194.1673151,0.00018905,2]
[350252437,1737737439219,-800.58,0.0001891,2]
[350252438,1737737439230,-500.0,0.0001891,2]
[350252439,1737737439239,-717.2917264,0.0001891,2]
[350252440,1737737439257,-990.6782736,0.0001891,2]
[350252441,1737737439266,-500.0,0.0001891,2]
[350252442,1737737439276,-1333.2,0.0001891,2]
[350252443,1737737439285,-182.43,0.0001891,2]
[350252444,1737737439295,-500.0,0.0001891,2]
[350252445,1737737439307,-612.94,0.0001891,2]
[350252446,1737737439317,-500.0,0.0001891,2]
[350252447,1737737439327,-500.0,0.0001891,2]
[350252448,1737737439336,-500.0,0.0001891,2]
[350252449,1737737439346,-327.82,0.0001891,2]
[350252450,1737737439355,-500.0,0.0001891,2]
[350252451,1737737439364,-500.0,0.0001891,2]
[350252452,1737737439374,-206.98,0.0001891,2]
[350252453,1737737439385,-500.0,0.0001891,2]
[350252454,1737737439395,-500.0,0.0001891,2]
[350252455,1737737439405,-500.0,0.0001891,2]
[350252456,1737737439415,-500.0,0.0001891,2]
[350252457,1737737439424,-502.8,0.0001891,2]
[350252458,1737737439434,-395.56,0.0001891,2]
[350252459,1737737439443,-500.0,0.0001891,2]
[350252460,1737737439453,-500.0,0.0001891,2]
[350252461,1737737439462,-49159.98481756,0.00018938,2]
[350252462,1737737439475,-51494.99708244,0.00018938,2]
[350252463,1737737439485,-167.92680388,0.00018945,2]
[350252464,1737737439495,-700.0,0.00018954,2]
[350252465,1737737439504,-700.0,0.00018954,2]
[350252466,1737737439514,-700.0,0.00018954,2]
[350252467,1737737439532,-700.0,0.00018954,2]
[350252468,1737737439541,-700.0,0.00018954,2]
[350252469,1737737439554,-700.0,0.00018954,2]
[350252470,1737737439564,-700.0,0.00018954,2]
[350252471,1737737439574,-700.0,0.00018954,2]
[350252472,1737737439584,-700.0,0.00018954,2]